[Event "Gaprindashvili Cup Open II Stage 2020"]
[Site "Online"]
[Date "2020.11.08"]
[Round "2.4"]
[White "Pantsulaia, Levan"]
[Black "Volkov, Nika"]
[Result "1-0"]
[ECO "A07"]
[WhiteElo "2553"]
[BlackElo "2084"]
[Annotator "ChessBase"]
[PlyCount "71"]
[EventDate "2020.11.04"]
[EventType "swiss"]
[SourceTitle "playchess.com"]
[Source "ChessBase"]
[SourceQuality "1"]
[TimeControl "1500+5"]

1. Nf3 {[%emt 0:00:03]} d5 {[%emt 0:00:05]} 2. g3 {[%emt 0:00:04]} Nf6 {[%emt 0:00:03]} 3. Bg2 {[%emt 0:00:02]} Bg4 {[%emt 0:00:02]} 4. c4 {[%emt 0:00:04]} e6 {[%emt 0:00:08]} 5. Qb3 {[%emt 0:00:46]} Qc8 {[%emt 0:02:06]} 6. h3 {[%emt 0:00:54]} Bf5 {[%emt 0:00:04]} 7. d3 {[%emt 0:00:40]} c6 {[%emt 0:01:15]} 8. Bf4 {[%emt 0:01:04]} Nbd7 {[%emt 0:00:05]} 9. Nbd2 {[%emt 0:00:24]} h6 {[%emt 0:00:07]} 10. g4 {[%emt 0:00:19]} Bg6 {[%emt 0:00:06]} 11. Rc1 {[%emt 0:00:37]} Be7 {[%emt 0:00:18]} 12. cxd5 {[%emt 0:00:18]} Nxd5 {[%emt 0:01:04]} 13. Bg3 {[%emt 0:00:08]} b5 {[%emt 0:00:18]} 14. O-O {[%emt 0:01:17]} h5 {[%emt 0:00:37]} 15. Ne4 {[%emt 0:01:49]} O-O {[%emt 0:01:01]} 16. Nd4 {[%emt 0:00:44]} Bxe4 {[%emt 0:05:30]} 17. Rxc6 {[%emt 0:01:29]} Bxg2 {[%emt 0:06:15]} 18. Rxc8 {[%emt 0:00:06]} Raxc8 {[%emt 0:00:02]} 19. Kxg2 {[%emt 0:00:03]} h4 {[%emt 0:00:01]} 20. Bh2 {[%emt 0:00:06]} a6 {[%emt 0:00:02]} 21. Nf3 {[%emt 0:00:57]} Nc5 {[%emt 0:01:26]} 22. Qd1 {[%emt 0:00:06]} Na4 {[%emt 0:00:01]} 23. Qb1 {[%emt 0:00:11]} b4 {[%emt 0:00:31]} 24. Rc1 {[%emt 0:00:10]} Bf6 {[%emt 0:00:06]} 25. Ne5 {[%emt 0:00:21]} Rfd8 {[%emt 0:00:36]} 26. d4 {[%emt 0:00:43]} a5 {[%emt 0:00:19]} 27. e3 {[%emt 0:00:14]} Ndb6 {[%emt 0:00:27]} 28. Nc6 {[%emt 0:01:12]} Rd5 {[%emt 0:00:58]} 29. Rc2 {[%emt 0:00:07]} Ra8 {[%emt 0:03:26]} 30. Qf1 {[%emt 0:00:36]} g6 {[%emt 0:00:17]} 31. e4 {[%emt 0:00:40]} Rd7 {[%emt 0:00:02]} 32. Qb5 {[%emt 0:00:03]} Bxd4 {[%emt 0:00:08]} 33. Nxd4 {[%emt 0:00:11]} Rxd4 {[%emt 0:00:01]} 34. b3 {[%emt 0:00:03]} Nc3 {[%emt 0:00:02]} 35. Qxb6 {[%emt 0:00:02]} Rxe4 {[%emt 0:00:01]} 36. Rxc3 {[%emt 0:00:27]} 1-0

[Event "Gaprindashvili Cup Open II Stage 2020"]
[Site "Online"]
[Date "2020.11.08"]
[Round "2.5"]
[White "Elashvili, Giorgi"]
[Black "Shanava, Konstantine"]
[Result "0-1"]
[ECO "A89"]
[WhiteElo "1857"]
[BlackElo "2504"]
[Annotator "ChessBase"]
[PlyCount "67"]
[EventDate "2020.11.04"]
[EventType "swiss"]
[SourceTitle "playchess.com"]
[Source "ChessBase"]
[SourceQuality "1"]
[TimeControl "1500+5"]

1. d4 {[%emt 0:00:00]} g6 {[%emt 0:00:06]} 2. Nf3 {[%emt 0:00:03]} Bg7 {[%emt 0:00:02]} 3. g3 {[%emt 0:00:11]} d6 {[%emt 0:00:14]} 4. Bg2 {[%emt 0:00:04]} f5 {[%emt 0:00:05]} 5. O-O {[%emt 0:00:09]} Nf6 {[%emt 0:00:02]} 6. c4 {[%emt 0:03:00]} O-O {[%emt 0:00:05]} 7. Nc3 {[%emt 0:00:01]} Nc6 {[%emt 0:00:50]} 8. Bg5 {[%emt 0:01:12]} Ne4 {[%emt 0:00:38]} 9. d5 {[%emt 0:02:19]} Nxg5 {[%emt 0:02:50]} 10. dxc6 {[%emt 0:01:55]} Nxf3+ {[%emt 0:00:43]} 11. Bxf3 {[%emt 0:00:05]} bxc6 {[%emt 0:00:13]} 12. Bxc6 {[%emt 0:00:06]} Rb8 {[%emt 0:00:01]} 13. Qd2 {[%emt 0:01:52]} e6 {[%emt 0:00:58]} 14. Rae1 {[%emt 0:01:47]} a6 {[%emt 0:00:40]} 15. e3 {[%emt 0:01:33]} Qf6 {[%emt 0:01:00]} 16. f4 {[%emt 0:00:20]} Rb6 {[%emt 0:00:35]} 17. Qg2 {[%emt 0:00:48]} Rb4 {[%emt 0:00:26]} 18. Rc1 {[%emt 0:00:48]} g5 {[%emt 0:01:16]} 19. b3 {[%emt 0:00:40]} Kh8 {[%emt 0:00:06]} 20. Kh1 {[%emt 0:01:04]} gxf4 {[%emt 0:04:22]} 21. exf4 {[%emt 0:00:04]} Qd4 {[%emt 0:00:20]} 22. Rfe1 {[%emt 0:03:40]} Rb6 {[%emt 0:00:45]} 23. Na4 {[%emt 0:01:40]} Rxc6 {[%emt 0:00:20]} 24. Qxc6 {[%emt 0:00:43]} Qa7 {[%emt 0:00:03]} 25. Nc5 {[%emt 0:00:42]} Qxc5 {[%emt 0:01:39]} 26. Qxc5 {[%emt 0:00:03]} dxc5 {[%emt 0:00:04]} 27. h3 {[%emt 0:00:46]} Bb7+ {[%emt 0:00:49]} 28. Kh2 {[%emt 0:00:02]} Be4 {[%emt 0:00:02]} 29. Rcd1 {[%emt 0:00:09]} Bd4 {[%emt 0:00:05]} 30. Rc1 {[%emt 0:00:55]} Kg7 {[%emt 0:00:08]} 31. h4 {[%emt 0:00:02]} Kf6 {[%emt 0:00:09]} 32. Kh3 {[%emt 0:00:12]} Rg8 {[%emt 0:00:04]} 33. Re2 {[%emt 0:00:10]} a5 {[%emt 0:00:04]} 34. Ree1 {[%emt 0:00:19]} 0-1

[Event "Gaprindashvili Cup Open II Stage 2020"]
[Site "Online"]
[Date "2020.11.08"]
[Round "2.6"]
[White "Quparadze, Giga"]
[Black "Liponava, Zurab"]
[Result "1-0"]
[ECO "B20"]
[WhiteElo "2463"]
[BlackElo "1800"]
[Annotator "ChessBase"]
[PlyCount "81"]
[EventDate "2020.11.04"]
[EventType "swiss"]
[SourceTitle "playchess.com"]
[Source "ChessBase"]
[SourceQuality "1"]
[TimeControl "1500+5"]

1. e4 {[%emt 0:00:00]} c5 {[%emt 0:00:07]} 2. Ne2 {[%emt 0:00:03]} a6 {[%emt 0:00:02]} 3. Nbc3 {[%emt 0:00:04]} b5 {[%emt 0:00:05]} 4. d4 {[%emt 0:00:02]} b4 {[%emt 0:00:13]} 5. Na4 {[%emt 0:00:07]} cxd4 {[%emt 0:00:09]} 6. Nxd4 {[%emt 0:00:02]} e6 {[%emt 0:00:18]} 7. Be2 {[%emt 0:00:06]} Bb7 {[%emt 0:00:06]} 8. Bf3 {[%emt 0:00:02]} Nc6 {[%emt 0:00:12]} 9. O-O {[%emt 0:00:03]} Qa5 {[%emt 0:01:05]} 10. c3 {[%emt 0:00:24]} bxc3 {[%emt 0:00:51]} 11. Nxc3 {[%emt 0:00:02]} Nxd4 {[%emt 0:01:26]} 12. Qxd4 {[%emt 0:00:05]} d6 {[%emt 0:01:00]} 13. b4 {[%emt 0:00:24]} Qc7 {[%emt 0:01:28]} 14. Bb2 {[%emt 0:00:03]} e5 {[%emt 0:00:12]} 15. Nd5 {[%emt 0:00:13]} Bxd5 {[%emt 0:00:18]} 16. Qxd5 {[%emt 0:00:02]} Rb8 {[%emt 0:00:13]} 17. Rac1 {[%emt 0:00:03]} Qd7 {[%emt 0:00:18]} 18. Bxe5 {[%emt 0:00:16]} Nf6 {[%emt 0:01:29]} 19. Bxf6 {[%emt 0:00:04]} gxf6 {[%emt 0:00:02]} 20. Qh5 {[%emt 0:00:48]} Rb5 {[%emt 0:00:51]} 21. e5 {[%emt 0:00:03]} Rxe5 {[%emt 0:02:33]} 22. Qxe5+ {[%emt 0:00:03]} dxe5 {[%emt 0:00:02]} 23. Bc6 {[%emt 0:00:02]} Bxb4 {[%emt 0:00:03]} 24. Rfd1 {[%emt 0:00:09]} Qxc6 {[%emt 0:00:27]} 25. Rxc6 {[%emt 0:00:05]} O-O {[%emt 0:00:35]} 26. Rxa6 {[%emt 0:00:03]} Kg7 {[%emt 0:00:04]} 27. Rb1 {[%emt 0:00:14]} Rc8 {[%emt 0:00:14]} 28. g3 {[%emt 0:00:03]} Bc5 {[%emt 0:00:08]} 29. Rb2 {[%emt 0:00:07]} Bd4 {[%emt 0:00:03]} 30. Re2 {[%emt 0:00:02]} f5 {[%emt 0:00:11]} 31. Kg2 {[%emt 0:00:02]} h5 {[%emt 0:00:14]} 32. Rd6 {[%emt 0:00:06]} Ra8 {[%emt 0:00:16]} 33. h4 {[%emt 0:00:10]} Ra4 {[%emt 0:00:18]} 34. Rd7 {[%emt 0:00:02]} Kf6 {[%emt 0:00:50]} 35. Rc2 {[%emt 0:00:03]} Ke6 {[%emt 0:00:24]} 36. Rdc7 {[%emt 0:00:02]} f4 {[%emt 0:00:19]} 37. gxf4 {[%emt 0:00:03]} exf4 {[%emt 0:00:08]} 38. R7c4 {[%emt 0:00:02]} Rxc4 {[%emt 0:00:11]} 39. Rxc4 {[%emt 0:00:03]} Kd5 {[%emt 0:00:04]} 40. Rxd4+ {[%emt 0:00:04]} Kxd4 {[%emt 0:00:02]} 41. Kf3 {[%emt 0:00:02]} 1-0

[Event "Gaprindashvili Cup Open II Stage 2020"]
[Site "Online"]
[Date "2020.11.08"]
[Round "2.7"]
[White "Kachkachishvili, Lasha"]
[Black "Lortkipanidze, Nodar"]
[Result "0-1"]
[ECO "A84"]
[WhiteElo "1681"]
[BlackElo "2416"]
[Annotator "ChessBase"]
[PlyCount "54"]
[EventDate "2020.11.04"]
[EventType "swiss"]
[SourceTitle "playchess.com"]
[Source "ChessBase"]
[SourceQuality "1"]
[TimeControl "1500+5"]

1. Nf3 {[%emt 0:00:07]} e6 {[%emt 0:00:19]} 2. d4 {[%emt 0:00:09]} f5 {[%emt 0:00:04]} 3. g3 {[%emt 0:00:03]} b6 {[%emt 0:00:02]} 4. Bg2 {[%emt 0:00:02]} Bb7 {[%emt 0:00:01]} 5. c4 {[%emt 0:00:08]} Nf6 {[%emt 0:00:08]} 6. O-O {[%emt 0:00:04]} a5 {[%emt 0:00:06]} 7. Nc3 {[%emt 0:03:08]} Bb4 {[%emt 0:00:04]} 8. Bd2 {[%emt 0:00:19]} O-O {[%emt 0:00:17]} 9. Rc1 {[%emt 0:00:22]} Qe8 {[%emt 0:01:53]} 10. Nb5 {[%emt 0:01:54]} Na6 {[%emt 0:00:13]} 11. Bxb4 {[%emt 0:00:07]} axb4 {[%emt 0:00:03]} 12. Nh4 {[%emt 0:05:27]} Bxg2 {[%emt 0:00:09]} 13. Nxg2 {[%emt 0:00:13]} c6 {[%emt 0:01:12]} 14. Nd6 {[%emt 0:00:04]} Qe7 {[%emt 0:00:02]} 15. c5 {[%emt 0:00:04]} Nd5 {[%emt 0:00:19]} 16. e4 {[%emt 0:01:37]} fxe4 {[%emt 0:00:28]} 17. Nxe4 {[%emt 0:00:11]} bxc5 {[%emt 0:00:02]} 18. dxc5 {[%emt 0:00:16]} Nac7 {[%emt 0:00:06]} 19. Qb3 {[%emt 0:02:15]} Ra5 {[%emt 0:01:35]} 20. Ra1 {[%emt 0:01:32]} Na6 {[%emt 0:00:25]} 21. a3 {[%emt 0:01:09]} Nxc5 {[%emt 0:00:28]} 22. Nxc5 {[%emt 0:00:15]} Qxc5 {[%emt 0:00:03]} 23. axb4 {[%emt 0:00:57]} Qxf2+ {[%emt 0:00:19]} 24. Rxf2 {[%emt 0:00:05]} Rxa1+ {[%emt 0:00:02]} 25. Ne1 {[%emt 0:00:01]} Rxe1+ {[%emt 0:00:01]} 26. Kg2 {[%emt 0:00:02]} Ne3+ {[%emt 0:00:01]} 27. Kh3 {[%emt 0:00:28]} Rxf2 {[%emt 0:00:03]} 0-1

[Event "Gaprindashvili Cup Open II Stage 2020"]
[Site "Online"]
[Date "2020.11.08"]
[Round "2.9"]
[White "Akhvlediani, Irakli"]
[Black "Safarov, Deniel"]
[Result "1-0"]
[ECO "E90"]
[WhiteElo "2355"]
[BlackElo "1720"]
[Annotator "ChessBase"]
[PlyCount "59"]
[EventDate "2020.11.04"]
[EventType "swiss"]
[SourceTitle "playchess.com"]
[Source "ChessBase"]
[SourceQuality "1"]
[TimeControl "1500+5"]

1. d4 {[%emt 0:00:01]} Nf6 {[%emt 0:00:03]} 2. c4 {[%emt 0:00:04]} g6 {[%emt 0:00:01]} 3. Nc3 {[%emt 0:00:02]} Bg7 {[%emt 0:00:01]} 4. Nf3 {[%emt 0:00:03]} d6 {[%emt 0:00:03]} 5. e4 {[%emt 0:00:09]} O-O {[%emt 0:00:02]} 6. h3 {[%emt 0:00:01]} e5 {[%emt 0:00:01]} 7. d5 {[%emt 0:00:01]} a5 {[%emt 0:00:01]} 8. g4 {[%emt 0:00:02]} Na6 {[%emt 0:00:11]} 9. Be3 {[%emt 0:00:01]} Nc5 {[%emt 0:00:50]} 10. Nd2 {[%emt 0:00:05]} Ne8 {[%emt 0:00:30]} 11. Be2 {[%emt 0:00:16]} f5 {[%emt 0:01:18]} 12. exf5 {[%emt 0:00:02]} gxf5 {[%emt 0:00:02]} 13. Qc2 {[%emt 0:00:06]} e4 {[%emt 0:01:12]} 14. O-O-O {[%emt 0:00:13]} Qf6 {[%emt 0:00:59]} 15. Kb1 {[%emt 0:00:30]} Na6 {[%emt 0:00:41]} 16. a3 {[%emt 0:00:19]} Bd7 {[%emt 0:00:56]} 17. Rhg1 {[%emt 0:00:08]} c6 {[%emt 0:02:25]} 18. gxf5 {[%emt 0:00:51]} Bxf5 {[%emt 0:01:09]} 19. Ndxe4 {[%emt 0:00:06]} Qe7 {[%emt 0:01:12]} 20. Bd3 {[%emt 0:00:03]} Nb4 {[%emt 0:00:20]} 21. axb4 {[%emt 0:01:07]} axb4 {[%emt 0:00:02]} 22. Ng5 {[%emt 0:00:38]} Qc7 {[%emt 0:07:31]} 23. Bxf5 {[%emt 0:00:18]} Nf6 {[%emt 0:00:02]} 24. Ne6 {[%emt 0:00:40]} Qa5 {[%emt 0:00:09]} 25. Rxg7+ {[%emt 0:00:04]} Kh8 {[%emt 0:00:02]} 26. Qa4 {[%emt 0:00:10]} bxc3 {[%emt 0:00:49]} 27. Qxa5 {[%emt 0:00:04]} Rxa5 {[%emt 0:00:01]} 28. Bd4 {[%emt 0:00:03]} cxb2 {[%emt 0:00:16]} 29. Rxh7+ {[%emt 0:00:04]} Kg8 {[%emt 0:00:03]} 30. Rg1+ {[%emt 0:00:01]} 1-0

[Event "Gaprindashvili Cup Open II Stage 2020"]
[Site "Online"]
[Date "2020.11.08"]
[Round "2.10"]
[White "Petriashvili, Nikoloz"]
[Black "Bagaturov, Giorgi"]
[Result "1/2-1/2"]
[ECO "B30"]
[WhiteElo "2425"]
[BlackElo "2431"]
[Annotator "ChessBase"]
[PlyCount "119"]
[EventDate "2020.11.04"]
[EventType "swiss"]
[SourceTitle "playchess.com"]
[Source "ChessBase"]
[SourceQuality "1"]
[TimeControl "1500+5"]

1. e4 {[%emt 0:00:00]} c5 {[%emt 0:00:09]} 2. Nc3 {[%emt 0:00:03]} Nc6 {[%emt 0:00:09]} 3. Bb5 {[%emt 0:00:02]} Nd4 {[%emt 0:00:03]} 4. Nf3 {[%emt 0:00:02]} e6 {[%emt 0:00:05]} 5. O-O {[%emt 0:00:42]} a6 {[%emt 0:00:12]} 6. Bd3 {[%emt 0:00:15]} Nc6 {[%emt 0:00:13]} 7. Re1 {[%emt 0:01:44]} d6 {[%emt 0:00:14]} 8. Bf1 {[%emt 0:01:02]} Nf6 {[%emt 0:00:07]} 9. d4 {[%emt 0:00:03]} cxd4 {[%emt 0:00:03]} 10. Nxd4 {[%emt 0:00:02]} Qc7 {[%emt 0:00:13]} 11. Bg5 {[%emt 0:02:32]} Be7 {[%emt 0:00:08]} 12. Nxc6 {[%emt 0:04:32]} bxc6 {[%emt 0:00:10]} 13. Qd3 {[%emt 0:00:07]} O-O {[%emt 0:03:22]} 14. Rad1 {[%emt 0:00:09]} Rd8 {[%emt 0:00:51]} 15. Qg3 {[%emt 0:00:16]} e5 {[%emt 0:00:23]} 16. Bc4 {[%emt 0:00:40]} Nh5 {[%emt 0:01:48]} 17. Qh4 {[%emt 0:00:45]} Bxg5 {[%emt 0:00:06]} 18. Qxh5 {[%emt 0:01:46]} Bf6 {[%emt 0:00:21]} 19. Rd3 {[%emt 0:00:16]} Qe7 {[%emt 0:00:20]} 20. Red1 {[%emt 0:00:27]} Be6 {[%emt 0:00:19]} 21. Bxe6 {[%emt 0:01:38]} Qxe6 {[%emt 0:01:56]} 22. b3 {[%emt 0:00:06]} Be7 {[%emt 0:01:12]} 23. h3 {[%emt 0:00:10]} g6 {[%emt 0:00:17]} 24. Qg4 {[%emt 0:00:24]} Kg7 {[%emt 0:01:22]} 25. Qxe6 {[%emt 0:01:08]} fxe6 {[%emt 0:00:03]} 26. Re1 {[%emt 0:00:04]} Rab8 {[%emt 0:00:50]} 27. Na4 {[%emt 0:00:06]} Bf6 {[%emt 0:03:39]} 28. Red1 {[%emt 0:00:37]} Be7 {[%emt 0:00:36]} 29. Re1 {[%emt 0:00:30]} Bf6 {[%emt 0:00:19]} 30. g3 {[%emt 0:00:02]} Kf7 {[%emt 0:00:18]} 31. Nb2 {[%emt 0:00:36]} d5 {[%emt 0:01:00]} 32. Rc3 {[%emt 0:01:34]} Rd6 {[%emt 0:00:32]} 33. Nd3 {[%emt 0:00:08]} Kg7 {[%emt 0:01:01]} 34. Rc5 {[%emt 0:00:16]} Bd8 {[%emt 0:00:30]} 35. Nxe5 {[%emt 0:00:57]} Bb6 {[%emt 0:00:49]} 36. Rxc6 {[%emt 0:00:06]} Rxc6 {[%emt 0:00:03]} 37. Nxc6 {[%emt 0:00:02]} Rc8 {[%emt 0:00:07]} 38. exd5 {[%emt 0:00:29]} exd5 {[%emt 0:00:02]} 39. Nb4 {[%emt 0:00:27]} Ba5 {[%emt 0:00:47]} 40. Re7+ {[%emt 0:00:16]} Kf8 {[%emt 0:00:17]} 41. Nxd5 {[%emt 0:00:07]} Rxc2 {[%emt 0:00:07]} 42. Rxh7 {[%emt 0:00:43]} Rxa2 {[%emt 0:00:19]} 43. b4 {[%emt 0:01:07]} Rd2 {[%emt 0:00:18]} 44. Nf4 {[%emt 0:00:05]} Bb6 {[%emt 0:00:29]} 45. Nxg6+ {[%emt 0:00:04]} Kg8 {[%emt 0:00:11]} 46. Rb7 {[%emt 0:00:04]} Bxf2+ {[%emt 0:00:04]} 47. Kg2 {[%emt 0:00:02]} Be1+ {[%emt 0:00:14]} 48. Kf3 {[%emt 0:00:12]} Rb2 {[%emt 0:00:10]} 49. h4 {[%emt 0:00:35]} Rxb4 {[%emt 0:00:25]} 50. Ra7 {[%emt 0:00:02]} Rb3+ {[%emt 0:00:05]} 51. Ke4 {[%emt 0:00:03]} Rxg3 {[%emt 0:00:38]} 52. h5 {[%emt 0:00:02]} Rg5 {[%emt 0:00:26]} 53. Ne7+ {[%emt 0:00:10]} Kh8 {[%emt 0:00:25]} 54. h6 {[%emt 0:00:10]} Bc3 {[%emt 0:00:17]} 55. Nd5 {[%emt 0:00:16]} Re5+ {[%emt 0:00:06]} 56. Kd3 {[%emt 0:00:02]} Rxd5+ {[%emt 0:00:01]} 57. Kxc3 {[%emt 0:00:01]} Rh5 {[%emt 0:00:03]} 58. Rxa6 {[%emt 0:00:02]} Kh7 {[%emt 0:00:03]} 59. Rb6 {[%emt 0:00:03]} Rxh6 {[%emt 0:00:03]} 60. Rxh6+ {[%emt 0:00:03]} 1/2-1/2

[Event "Gaprindashvili Cup Open II Stage 2020"]
[Site "Online"]
[Date "2020.11.08"]
[Round "2.11"]
[White "kiladze, Luka"]
[Black "Tsereteli, Tornike"]
[Result "0-1"]
[ECO "D38"]
[WhiteElo "1786"]
[BlackElo "1765"]
[Annotator "NA"]
[PlyCount "84"]
[EventDate "2020.11.04"]
[EventType "swiss"]
[SourceTitle "playchess.com"]
[Source "ChessBase"]
[SourceQuality "1"]
[TimeControl "1500+5"]

1. d4 {[%emt 0:00:02]} Nf6 {[%emt 0:00:03]} 2. Nf3 {[%emt 0:00:06]} e6 {[%emt 0:00:02]} 3. c4 {[%emt 0:00:03]} d5 {[%emt 0:00:02]} 4. Nc3 {[%emt 0:00:02]} Bb4 {[%emt 0:00:02]} 5. Bg5 {[%emt 0:00:02]} h6 {[%emt 0:00:04]} 6. Bh4 {[%emt 0:00:02]} g5 {[%emt 0:00:02]} 7. Bg3 {[%emt 0:00:02]} Ne4 {[%emt 0:00:02]} 8. Qc2 {[%emt 0:00:02]} c5 {[%emt 0:00:27]} 9. cxd5 {[%emt 0:00:03]} exd5 {[%emt 0:00:06]} 10. dxc5 {[%emt 0:00:27]} Bf5 {[%emt 0:02:27]} 11. Nd4 {[%emt 0:03:15]} Qa5 {[%emt 0:01:58]} 12. O-O-O {[%emt 0:02:28]} Nxg3 {[%emt 0:03:33]} 13. Nxf5 {[%emt 0:00:52]} Nxh1 {[%emt 0:00:06]} 14. Nd6+ {[%emt 0:00:43]} Kf8 {[%emt 0:00:58]} 15. Nxd5 {[%emt 0:02:30]} Qxc5 {[%emt 0:00:40]} 16. Nxb4 {[%emt 0:01:39]} Qxc2+ {[%emt 0:00:08]} 17. Nxc2 {[%emt 0:00:03]} Nxf2 {[%emt 0:00:14]} 18. Rd5 {[%emt 0:00:03]} Nc6 {[%emt 0:00:47]} 19. Rf5 {[%emt 0:00:11]} Ke7 {[%emt 0:00:10]} 20. Nxf7 {[%emt 0:01:41]} Rhf8 {[%emt 0:00:34]} 21. Nxh6 {[%emt 0:00:02]} Ke6 {[%emt 0:02:00]} 22. Rxg5 {[%emt 0:01:31]} Rf6 {[%emt 0:03:24]} 23. Ng8 {[%emt 0:01:01]} Rf5 {[%emt 0:00:07]} 24. Rg7 {[%emt 0:01:09]} Rd8 {[%emt 0:02:40]} 25. Ne3 {[%emt 0:01:30]} Rc5+ {[%emt 0:00:16]} 26. Kb1 {[%emt 0:00:02]} Re5 {[%emt 0:01:08]} 27. Rg3 {[%emt 0:00:48]} Ne4 {[%emt 0:00:42]} 28. Rh3 {[%emt 0:01:31]} Rxg8 {[%emt 0:00:26]} 29. Nc4 {[%emt 0:00:02]} Rf5 {[%emt 0:01:01]} 30. Ne3 {[%emt 0:01:20]} Rc5 {[%emt 0:00:33]} 31. Rh6+ {[%emt 0:00:28]} Kf7 {[%emt 0:00:37]} 32. b4 {[%emt 0:00:49]} Nxb4 {[%emt 0:00:13]} 33. Rh4 {[%emt 0:00:05]} Nd2+ {[%emt 0:00:29]} 34. Kb2 {[%emt 0:00:02]} Nxf1 {[%emt 0:00:02]} 35. Nxf1 {[%emt 0:00:04]} a5 {[%emt 0:00:26]} 36. a3 {[%emt 0:00:16]} Nc6 {[%emt 0:00:06]} 37. Rf4+ {[%emt 0:00:03]} Ke7 {[%emt 0:00:06]} 38. g4 {[%emt 0:00:05]} Rf8 {[%emt 0:00:15]} 39. Re4+ {[%emt 0:00:16]} Re5 {[%emt 0:00:03]} 40. Ng3 {[%emt 0:00:26]} Rxe4 {[%emt 0:00:02]} 41. Nxe4 {[%emt 0:00:01]} Rf4 {[%emt 0:00:02]} 42. Nc5 {[%emt 0:00:07]} b6 {[%emt 0:00:18]} 0-1

[Event "Gaprindashvili Cup Open II Stage 2020"]
[Site "Online"]
[Date "2020.11.08"]
[Round "2.12"]
[White "Kacharava, Nikolozi"]
[Black "Qalichava, Akaki"]
[Result "1-0"]
[ECO "B48"]
[WhiteElo "2443"]
[BlackElo "1877"]
[Annotator "ChessBase"]
[PlyCount "79"]
[EventDate "2020.11.04"]
[EventType "swiss"]
[SourceTitle "playchess.com"]
[Source "ChessBase"]
[SourceQuality "1"]
[TimeControl "1500+5"]

1. e4 {[%emt 0:00:03]} c5 {[%emt 0:00:04]} 2. Nf3 {[%emt 0:00:03]} e6 {[%emt 0:00:02]} 3. d4 {[%emt 0:00:01]} cxd4 {[%emt 0:00:02]} 4. Nxd4 {[%emt 0:00:01]} Nc6 {[%emt 0:00:01]} 5. Nc3 {[%emt 0:00:03]} Qc7 {[%emt 0:00:03]} 6. Be3 {[%emt 0:00:03]} a6 {[%emt 0:00:02]} 7. Qf3 {[%emt 0:00:02]} Nf6 {[%emt 0:00:04]} 8. O-O-O {[%emt 0:00:05]} Bb4 {[%emt 0:00:21]} 9. Nxc6 {[%emt 0:00:56]} bxc6 {[%emt 0:00:46]} 10. Bd4 {[%emt 0:00:08]} Be7 {[%emt 0:00:30]} 11. e5 {[%emt 0:00:39]} Nd5 {[%emt 0:00:04]} 12. Ne4 {[%emt 0:00:43]} Rb8 {[%emt 0:03:16]} 13. c4 {[%emt 0:03:48]} c5 {[%emt 0:01:41]} 14. Nd6+ {[%emt 0:01:17]} Bxd6 {[%emt 0:00:13]} 15. exd6 {[%emt 0:00:03]} Qd8 {[%emt 0:00:06]} 16. Bxc5 {[%emt 0:00:53]} Nb4 {[%emt 0:00:56]} 17. Bxb4 {[%emt 0:04:20]} Rxb4 {[%emt 0:00:05]} 18. Qc3 {[%emt 0:00:07]} Qg5+ {[%emt 0:01:08]} 19. Kb1 {[%emt 0:00:26]} a5 {[%emt 0:00:43]} 20. h4 {[%emt 0:00:46]} Qf6 {[%emt 0:01:46]} 21. Qxf6 {[%emt 0:00:54]} gxf6 {[%emt 0:00:03]} 22. Bd3 {[%emt 0:00:10]} Bb7 {[%emt 0:00:34]} 23. a3 {[%emt 0:00:23]} Rb3 {[%emt 0:00:18]} 24. Ka2 {[%emt 0:01:10]} Rb6 {[%emt 0:00:22]} 25. c5 {[%emt 0:00:58]} Bd5+ {[%emt 0:00:03]} 26. Ka1 {[%emt 0:00:10]} Rb3 {[%emt 0:00:21]} 27. f3 {[%emt 0:02:10]} O-O {[%emt 0:01:08]} 28. Rd2 {[%emt 0:00:33]} Rc8 {[%emt 0:01:05]} 29. Rc1 {[%emt 0:00:09]} Kg7 {[%emt 0:00:33]} 30. Be4 {[%emt 0:00:25]} Bxe4 {[%emt 0:00:47]} 31. fxe4 {[%emt 0:00:02]} Rc6 {[%emt 0:00:12]} 32. Rc4 {[%emt 0:00:45]} Kg6 {[%emt 0:01:18]} 33. Ka2 {[%emt 0:00:27]} Rb5 {[%emt 0:00:03]} 34. b4 {[%emt 0:00:09]} f5 {[%emt 0:01:06]} 35. exf5+ {[%emt 0:00:21]} Kxf5 {[%emt 0:00:02]} 36. Rf2+ {[%emt 0:00:12]} Kg6 {[%emt 0:00:04]} 37. Rg4+ {[%emt 0:00:05]} Kh5 {[%emt 0:00:03]} 38. Rg5+ {[%emt 0:00:16]} Kxh4 {[%emt 0:00:05]} 39. Rg7 {[%emt 0:00:12]} e5 {[%emt 0:00:39]} 40. Rf1 {[%emt 0:00:11]} 1-0